bitfinex-derivatives/quotes_BTCF0:USTF0_20250514
["timestamp","ask_amount","ask_price","bid_price","bid_amount"]
[1747185309084,0.2268,104080.0,104070.0,2.00464169]
[1747185309284,0.2268,104080.0,104070.0,2.09923083]
[1747185309884,0.2268,104080.0,104070.0,2.03464169]
[1747185310183,0.4189502,104080.0,104070.0,2.00464169]
[1747185310384,0.2268,104080.0,104070.0,1.97384169]
[1747185310595,0.5876,104080.0,104070.0,1.97384169]
[1747185310887,0.87433934,104080.0,104070.0,0.01507299]
[1747185311390,0.87433934,104080.0,104070.0,1.6931687]
[1747185311779,0.7797502,104080.0,104070.0,1.6931687]
[1747185313487,0.87433934,104080.0,104070.0,1.6931687]
[1747185313677,0.7797502,104080.0,104070.0,1.6931687]
[1747185313882,0.87433934,104080.0,104070.0,1.6931687]
[1747185314185,0.7797502,104080.0,104070.0,1.6931687]
[1747185315492,0.7797502,104080.0,104070.0,1.7250687]
[1747185316484,0.7797502,104080.0,104070.0,0.1931687]
[1747185316687,0.87433934,104080.0,104070.0,0.001]
[1747185316882,0.1921871,104060.0,104050.0,0.2882898]
[1747185317083,1.0757871,104060.0,104050.0,0.5876098]
[1747185317392,1.1385871,104060.0,104050.0,2.0876098]
[1747185317586,1.1480737,104060.0,104050.0,2.0570098]
[1747185317994,1.1480737,104060.0,104050.0,2.0876098]
[1747185318588,1.1480737,104060.0,104050.0,2.0896098]
[1747185319294,1.1490737,104060.0,104050.0,2.0936098]
[1747185320994,1.1490737,104060.0,104050.0,2.18819894]
[1747185321193,1.1490737,104060.0,104050.0,2.0936098]
[1747185321394,1.13780732,104060.0,104050.0,2.0936098]
[1747185321695,1.14342803,104060.0,104050.0,2.0936098]
[1747185323589,1.14342803,104060.0,104050.0,2.18819894]
[1747185325089,1.14342803,104060.0,104050.0,2.21839894]
[1747185325289,1.14342803,104060.0,104050.0,2.1238098]
[1747185325893,1.14342803,104060.0,104050.0,2.21839894]
[1747185326298,1.14342803,104060.0,104050.0,2.1238098]
[1747185328293,0.96250731,104060.0,104050.0,2.1238098]
[1747185328494,0.96250731,104060.0,104050.0,2.21839894]
[1747185329299,1.15469441,104060.0,104050.0,2.21839894]
[1747185329495,0.24090731,104060.0,104050.0,2.21839894]
[1747185329697,0.23142071,104060.0,104050.0,2.21839894]
[1747185329893,0.2258,104060.0,104050.0,2.21839894]
[1747185330794,0.23142071,104060.0,104050.0,2.21839894]
[1747185331104,0.23142071,104060.0,104050.0,2.1238098]
[1747185331286,0.23142071,104060.0,104050.0,2.21839894]
[1747185331287,0.59222071,104060.0,104050.0,2.21839894]
[1747185331486,0.60185845,104060.0,104050.0,2.21839894]
[1747185332098,0.88863469,104060.0,104050.0,1.5366]
[1747185332297,0.98473869,104060.0,104050.0,0.006]
[1747185333000,0.98473869,104060.0,104050.0,0.1982056]
[1747185334601,0.88863469,104060.0,104050.0,0.1982056]
[1747185334788,0.98473869,104060.0,104050.0,0.1982056]
[1747185335296,1.25329869,104060.0,104050.0,0.1982056]
[1747185336500,1.15719469,104060.0,104050.0,0.1982056]
[1747185336700,1.15719469,104060.0,104050.0,0.006]
[1747185336898,1.25329869,104060.0,104050.0,0.006]
[1747185337097,0.1922241,104040.0,104030.0,0.22417102]
[1747185337299,1.00841324,104040.0,104030.0,0.19367102]
[1747185337592,1.07181324,104040.0,104030.0,1.72417102]
[1747185337804,1.07181324,104040.0,104030.0,1.69367102]
[1747185338107,1.23381324,104040.0,104030.0,0.19367102]
[1747185338301,1.23381324,104040.0,104030.0,0.00844162]
[1747185338605,0.1922426,104030.0,104020.0,0.2227569]
[1747185338807,0.74203174,104030.0,104020.0,0.2227569]
[1747185339104,0.90403174,104030.0,104020.0,0.2227569]
[1747185339307,0.1922611,104020.0,104010.0,2.12997938]
[1747185339504,0.6164611,104020.0,104010.0,2.16047938]
[1747185339903,0.6164611,104020.0,104010.0,2.11241128]
[1747185340102,0.87305024,104020.0,104010.0,0.56434358]
[1747185340406,0.7784611,104020.0,104010.0,0.56434358]
[1747185340606,0.7784611,104020.0,104010.0,0.56634358]
[1747185340796,0.7784611,104020.0,104010.0,0.66093272]
[1747185340992,0.7784611,104020.0,104010.0,0.69253272]
[1747185341602,0.7784611,104020.0,104010.0,0.35095344]
[1747185342207,0.7784611,104020.0,104010.0,0.2563643]
[1747185342506,0.7784611,104020.0,104010.0,0.35095344]
[1747185342706,0.7794611,104020.0,104010.0,0.35095344]
[1747185345212,0.7794611,104020.0,104010.0,0.2563643]
[1747185345905,0.5872,104020.0,104010.0,0.2563643]
[1747185346403,0.2264,104020.0,104010.0,0.2563643]
[1747185346607,0.2264,104020.0,104010.0,0.35095344]
[1747185347104,0.163,104020.0,104010.0,0.80634258]
[1747185347505,0.163,104020.0,104010.0,2.21175344]
[1747185348009,0.163,104020.0,104010.0,1.85095344]
[1747185348403,0.163,104020.0,104010.0,2.21175344]
[1747185349207,0.163,104020.0,104010.0,2.30634258]
[1747185349403,0.37605845,104060.0,104010.0,2.60021828]
[1747185349607,0.03722071,104060.0,104050.0,0.28679474]
[1747185349810,0.03722071,104060.0,104050.0,0.4647656]
[1747185350116,0.0316,104060.0,104050.0,0.7230656]
[1747185350307,0.0316,104060.0,104050.0,0.81765474]
[1747185350508,0.0316,104060.0,104050.0,0.7230656]
[1747185350816,0.0346,104060.0,104050.0,0.81765474]
[1747185351108,0.0406,104060.0,104050.0,0.65565474]
[1747185351510,0.0406,104060.0,104050.0,0.5610656]
[1747185351717,0.0406,104060.0,104050.0,0.65565474]
[1747185351910,0.0356,104060.0,104050.0,0.65565474]
[1747185352411,0.0356,104060.0,104050.0,0.38309474]
[1747185352714,0.4256,104060.0,104050.0,0.66953474]
[1747185352902,0.4256,104060.0,104050.0,0.5749456]
[1747185353108,0.5876,104060.0,104050.0,2.16953474]
[1747185353309,0.5876,104060.0,104050.0,2.0749456]
[1747185353709,0.5876,104060.0,104050.0,2.16953474]
[1747185354621,0.2268,104060.0,104050.0,2.16953474]
[1747185355111,0.2268,104060.0,104050.0,2.0749456]
[1747185355315,0.2268,104060.0,104050.0,2.16953474]
[1747185358620,0.2268,104060.0,104050.0,2.0749456]
[1747185358911,0.2268,104060.0,104050.0,2.16953474]
[1747185360118,0.0648,104060.0,104050.0,2.16953474]
[1747185360318,0.001,104060.0,104050.0,2.16953474]
[1747185360614,0.001,104060.0,104050.0,2.53033474]
[1747185361119,0.5539871,104060.0,104050.0,2.0763056]
[1747185361419,0.6172871,104060.0,104050.0,2.0763056]
[1747185361720,0.6172871,104060.0,104050.0,2.0762256]
[1747185361916,0.6172871,104060.0,104050.0,2.0112256]
[1747185362215,0.7792871,104060.0,104050.0,1.7245056]
[1747185363516,0.87387624,104060.0,104050.0,0.1932056]
[1747185363727,0.96998024,104060.0,104050.0,0.001]
[1747185364811,0.1922426,104030.0,104020.0,0.38670272]
[1747185365010,1.00843174,104030.0,104020.0,0.41800272]
[1747185365312,1.26573174,104030.0,104020.0,0.43218135]
[1747185365821,1.1711426,104030.0,104020.0,0.43218135]
[1747185366120,1.26573174,104030.0,104020.0,0.35281775]
[1747185366319,1.1721426,104030.0,104020.0,0.35281775]
[1747185367017,1.1721426,104030.0,104020.0,0.20642663]
[1747185367720,1.1721426,104030.0,104020.0,0.192248]
[1747185367923,1.1721426,104030.0,104020.0,0.223248]
[1747185369024,1.1721426,104030.0,104020.0,0.224248]
[1747185373326,1.1721426,104030.0,104020.0,0.193248]
[1747185373521,1.1721426,104030.0,104000.0,0.25648024]
[1747185373522,1.17062114,104030.0,104000.0,0.25648024]
[1747185373824,0.5530795,104010.0,104000.0,0.47931698]
[1747185374025,0.5530795,104010.0,104000.0,2.01221698]
[1747185374222,0.4265,104010.0,104000.0,2.01221698]
[1747185374418,0.6187795,104010.0,104000.0,2.01221698]
[1747185374627,0.4265,104010.0,104000.0,2.01221698]
[1747185374828,0.6011433,104020.0,104010.0,0.1922795]
[1747185375028,0.6668433,104020.0,104010.0,0.35186864]
[1747185375827,0.4265,104020.0,104010.0,0.35186864]
[1747185376023,0.4265,104020.0,104010.0,0.74586864]
[1747185376024,0.2579611,104020.0,104010.0,0.74586864]
[1747185376326,0.2579611,104020.0,104010.0,0.74786864]
[1747185376527,0.2589611,104020.0,104010.0,0.74786864]
[1747185377326,0.034,104020.0,104010.0,1.03818864]
[1747185377533,0.001,104020.0,104010.0,1.13277778]
[1747185378327,0.001,104020.0,104010.0,1.03818864]
[1747185378534,0.1932611,104020.0,104010.0,1.03818864]
[1747185378745,0.2264611,104020.0,104010.0,0.9435995]
[1747185378942,0.2564611,104020.0,104010.0,1.03818864]
[1747185379439,0.2564611,104020.0,104010.0,2.4435995]
[1747185379624,0.2564611,104020.0,104010.0,2.53818864]
[1747185379823,0.0642,104020.0,104010.0,2.53818864]
[1747185380141,0.0642,104020.0,104010.0,2.4435995]
[1747185380338,0.0642,104020.0,104010.0,2.53818864]
[1747185380725,0.06982071,104020.0,104010.0,0.5871795]
[1747185380932,0.71747095,104020.0,104010.0,0.0341]
[1747185381130,0.78488181,104020.0,104010.0,0.32096864]
[1747185381535,0.78488181,104020.0,104010.0,0.2263795]
[1747185381736,0.59262071,104020.0,104010.0,0.32096864]
[1747185382038,0.59262071,104020.0,104010.0,0.38336864]
[1747185382941,0.78488181,104020.0,104010.0,0.38336864]
[1747185383239,0.59262071,104020.0,104010.0,0.38336864]
[1747185383640,0.78488181,104020.0,104010.0,0.38336864]
[1747185384038,0.59262071,104020.0,104010.0,0.38336864]
[1747185384635,0.78488181,104020.0,104010.0,0.38336864]
[1747185385336,0.78488181,104020.0,104010.0,0.2887795]
[1747185385637,0.78488181,104020.0,104010.0,0.2263795]
[1747185387836,0.79428825,104020.0,104010.0,0.2263795]
[1747185390651,0.79428825,104020.0,104010.0,0.35376864]
[1747185390948,0.79428825,104020.0,104010.0,0.2591795]
[1747185391147,0.79428825,104020.0,104010.0,0.35376864]
[1747185391540,0.79428825,104020.0,104010.0,0.2591795]
[1747185391945,0.79428825,104020.0,104010.0,0.35376864]
[1747185392851,0.79428825,104020.0,104010.0,0.2591795]
[1747185393050,0.79428825,104020.0,104010.0,0.35376864]
[1747185394050,0.79428825,104020.0,104010.0,0.2591795]
[1747185394540,0.79428825,104020.0,104010.0,0.2263795]
[1747185395448,0.88887739,104020.0,104010.0,0.2263795]
[1747185396554,0.79428825,104020.0,104010.0,0.2263795]
[1747185397549,0.79428825,104020.0,104010.0,0.32096864]
[1747185397852,0.79428825,104020.0,104010.0,0.2263795]
[1747185398154,0.79428825,104020.0,104010.0,0.08141269]
[1747185398357,0.60202715,104020.0,104010.0,0.17600183]
[1747185398656,0.79428825,104020.0,104010.0,0.20770183]
[1747185399748,0.79428825,104020.0,104010.0,0.11311269]
[1747185399954,0.79428825,104020.0,104010.0,0.20770183]
[1747185400350,0.79428825,104020.0,104010.0,0.11311269]
[1747185400547,0.1922795,104010.0,104000.0,1.982076]
[1747185400853,0.6178795,104010.0,104000.0,1.982076]
[1747185401056,0.0648,104010.0,104000.0,2.374576]
[1747185401551,0.0658,104010.0,104000.0,2.60186416]
[1747185401754,0.0328,104010.0,104000.0,2.60186416]
[1747185401947,0.0328,104010.0,104000.0,2.60486416]
[1747185402452,0.001,104010.0,104000.0,2.60486416]
[1747185403249,0.001,104010.0,104000.0,2.70922515]
[1747185403449,0.001,104010.0,104000.0,2.61463601]
[1747185403650,0.001,104010.0,104000.0,1.11463601]
[1747185404155,0.001,104010.0,104000.0,2.61463601]
[1747185405256,0.001,104010.0,104000.0,2.46824489]
[1747185407849,0.001,104010.0,104000.0,2.37365575]
[1747185408060,0.001,104010.0,104000.0,2.46824489]
[1747185409548,0.3608,104040.0,104010.0,0.1922795]
[1747185409757,0.0636,104040.0,104030.0,0.28683174]
[1747185410257,0.0636,104040.0,104030.0,1.85223174]
[1747185410754,0.0636,104040.0,104030.0,2.21303174]
[1747185410755,0.0323,104040.0,104030.0,2.21303174]
[1747185410951,0.0644,104050.0,104040.0,0.1922241]
[1747185411145,0.2569,104050.0,104040.0,1.02621324]
[1747185411857,0.1925,104050.0,104040.0,0.66541324]
[1747185412057,0.1925,104050.0,104040.0,1.40496238]
[1747185412357,0.0305,104050.0,104040.0,1.56896238]
[1747185413158,0.0305,104050.0,104040.0,1.40696238]
[1747185413957,0.0305,104050.0,104040.0,0.84360238]
[1747185414149,0.0305,104050.0,104040.0,1.03317324]
[1747185414351,0.0927,104050.0,104040.0,1.31301324]
[1747185414667,0.0927,104050.0,104040.0,1.09853998]
[1747185414952,0.0927,104050.0,104040.0,1.45933998]
[1747185415164,0.0927,104050.0,104040.0,1.36475084]
[1747185415355,0.0927,104050.0,104040.0,1.55392912]
[1747185415552,0.2548056,104050.0,104040.0,1.00395084]
[1747185415759,0.6156056,104050.0,104040.0,0.15032674]
[1747185416053,0.6156056,104050.0,104040.0,0.43713998]
[1747185416266,0.7776056,104050.0,104040.0,0.46713998]
[1747185416850,0.7776056,104050.0,104040.0,0.37255084]
[1747185417058,0.7776056,104050.0,104040.0,0.46713998]
[1747185417254,0.7776056,104050.0,104040.0,0.37255084]
[1747185417560,0.7776056,104050.0,104040.0,0.34255084]
[1747185417755,0.7776056,104050.0,104040.0,0.1962241]
[1747185417956,0.5854,104050.0,104040.0,0.1962241]
[1747185418147,0.2246,104050.0,104040.0,0.1962241]
[1747185418350,0.7776056,104050.0,104040.0,0.2262241]
[1747185418552,0.7776056,104050.0,104040.0,0.32081324]
[1747185419257,0.5854,104050.0,104040.0,0.32081324]
[1747185419451,0.2246,104050.0,104040.0,0.41540238]
[1747185419653,0.2246,104050.0,104040.0,0.47650238]
[1747185419868,0.2246,104050.0,104040.0,0.83730238]
[1747185420360,0.0626,104050.0,104040.0,0.83730238]
[1747185420862,0.0626,104050.0,104040.0,0.74271324]
[1747185422758,0.0626,104050.0,104040.0,0.38191324]
[1747185423061,0.0626,104050.0,104040.0,0.2873241]
[1747185423564,0.0626,104050.0,104040.0,0.2569241]
[1747185423772,0.4234,104050.0,104040.0,0.35151324]
[1747185424060,0.7776056,104050.0,104040.0,0.004]
[1747185424261,0.7776056,104050.0,104040.0,0.1962241]
[1747185424669,0.7776056,104050.0,104040.0,0.29081324]
[1747185424968,0.5854,104050.0,104040.0,0.29081324]
[1747185425369,0.59102071,104050.0,104040.0,0.29081324]
[1747185425659,0.59102071,104050.0,104040.0,0.32231324]
[1747185426168,0.78322631,104050.0,104040.0,0.1962241]
[1747185426464,0.78322631,104050.0,104040.0,0.29081324]
[1747185427864,0.78322631,104050.0,104040.0,0.1962241]
[1747185428770,0.78322631,104050.0,104040.0,1.79081324]
[1747185428959,0.59102071,104050.0,104040.0,0.29081324]
[1747185429155,0.78322631,104050.0,104040.0,0.1962241]
[1747185429465,0.78322631,104050.0,104040.0,1.79081324]
[1747185430766,0.78322631,104050.0,104040.0,1.6962241]
[1747185430967,0.78322631,104050.0,104040.0,1.79081324]
[1747185432368,0.23022071,104050.0,104040.0,1.91580238]
[1747185432569,0.2246,104050.0,104040.0,2.33930238]
[1747185432764,0.2246,104050.0,104040.0,2.62198238]
[1747185433071,0.2246,104050.0,104040.0,2.16659324]
[1747185433275,0.2246,104050.0,104040.0,2.0720041]
[1747185433457,0.23022071,104050.0,104040.0,2.62198238]
[1747185434168,0.06822071,104050.0,104040.0,2.62198238]
[1747185434668,0.0315,104050.0,104040.0,2.62198238]
[1747185434869,0.0315,104050.0,104040.0,2.4328041]
[1747185435068,0.0315,104050.0,104040.0,2.62198238]
[1747185435271,0.0315,104050.0,104040.0,1.12198238]
[1747185435664,0.0315,104050.0,104040.0,2.62198238]
[1747185435864,0.0315,104050.0,104040.0,2.90446238]
[1747185436463,0.3628,104080.0,104050.0,0.0480474]
[1747185436666,0.0608,104070.0,104060.0,0.9927764]
[1747185436871,0.0608,104070.0,104060.0,0.77461104]
[1747185437172,0.03,104070.0,104060.0,0.77461104]
[1747185437756,0.0608,104070.0,104060.0,0.77461104]
[1747185437960,0.0628,104070.0,104060.0,1.13541104]
[1747185438163,0.0628,104070.0,104060.0,1.51248018]
[1747185438164,0.002,104070.0,104060.0,1.51248018]
[1747185438371,0.0628,104090.0,104080.0,0.1921502]
[1747185438573,0.0628,104090.0,104080.0,0.93057934]
[1747185438778,0.0628,104090.0,104080.0,0.99197934]
[1747185439166,0.2248,104090.0,104080.0,0.99197934]
[1747185439373,0.2248,104090.0,104080.0,0.63117934]
[1747185439669,0.1921502,104080.0,104070.0,0.5225205]
[1747185439873,0.6478502,104080.0,104070.0,0.64760964]
[1747185440078,0.8098502,104080.0,104070.0,0.64760964]
[1747185440677,0.8098502,104080.0,104070.0,0.1921623]
[1747185440875,0.8108502,104080.0,104070.0,0.1921623]
[1747185441178,0.8108502,104080.0,104070.0,1.6921623]
[1747185441379,0.8108502,104080.0,104070.0,1.78675144]
[1747185441675,0.8108502,104080.0,104070.0,1.81995144]
[1747185442475,0.6187,104080.0,104070.0,1.81995144]
[1747185443764,0.6187,104080.0,104070.0,1.7253623]
[1747185443969,0.6187,104080.0,104070.0,1.81995144]
[1747185444763,0.6187,104080.0,104070.0,1.7253623]
[1747185444968,0.8108502,104080.0,104070.0,1.81995144]
[1747185445378,0.8108502,104080.0,104070.0,1.6921623]
[1747185446966,0.8108502,104080.0,104070.0,1.78675144]
[1747185447166,0.8108502,104080.0,104070.0,1.5]
[1747185447470,0.8108502,104080.0,104070.0,1.6921687]
[1747185450375,0.8108502,104080.0,104070.0,1.5]
[1747185450579,0.1921871,104060.0,104050.0,0.33852844]
[1747185450879,0.9137871,104060.0,104050.0,0.33852844]
[1747185451082,1.0061871,104060.0,104050.0,1.83852844]
[1747185451279,1.1681871,104060.0,104050.0,1.86902844]
[1747185451579,1.1681871,104060.0,104050.0,1.96361758]
[1747185451774,1.1691871,104060.0,104050.0,1.86902844]
[1747185452375,1.1711871,104060.0,104050.0,1.7227017]
[1747185452576,1.1731871,104060.0,104050.0,1.7227017]
[1747185453074,1.1731871,104060.0,104050.0,1.81729084]
[1747185453585,1.1731871,104060.0,104050.0,1.7227017]
[1747185454681,1.1731871,104060.0,104050.0,1.5]
[1747185454883,1.1731871,104060.0,104050.0,1.6922056]
[1747185455678,0.1922056,104050.0,104040.0,0.33855084]
[1747185455984,0.62541012,104050.0,104040.0,0.1922241]
[1747185456184,0.78741012,104050.0,104040.0,1.7237241]
[1747185456372,0.78741012,104050.0,104040.0,1.81831324]
[1747185456883,0.78741012,104050.0,104040.0,1.85011324]
[1747185457368,0.7776056,104050.0,104040.0,1.85011324]
[1747185457775,0.7776056,104050.0,104040.0,2.30550238]
[1747185457776,0.162,104050.0,104040.0,2.30550238]
[1747185457971,0.163,104050.0,104040.0,2.58502238]
[1747185458175,0.002,104050.0,104040.0,2.58502238]
[1747185458482,0.002,104050.0,104040.0,2.49043324]
[1747185458778,0.2260056,104050.0,104040.0,2.12963324]
[1747185458977,0.2250056,104050.0,104040.0,2.13263324]
[1747185460977,0.001,104050.0,104040.0,2.22722238]
[1747185461180,0.163,104050.0,104040.0,2.22722238]
[1747185461381,0.163,104050.0,104040.0,2.22622238]
[1747185462187,0.001,104050.0,104040.0,2.22622238]
[1747185462790,0.001,104050.0,104040.0,2.58702238]
[1747185463085,0.001,104050.0,104040.0,1.18313438]
[1747185463285,0.0317,104070.0,104060.0,0.28677624]
[1747185463479,0.0317,104070.0,104060.0,0.92489624]
[1747185463674,0.0317,104070.0,104060.0,2.3946071]
[1747185463876,0.0317,104070.0,104060.0,2.48919624]
[1747185464085,0.3925,104070.0,104060.0,2.12839624]
[1747185464290,0.5846687,104070.0,104060.0,2.0338071]
[1747185464481,0.6481687,104070.0,104060.0,2.0013071]
[1747185464682,0.6511687,104070.0,104060.0,2.0338071]
[1747185464983,0.6511687,104070.0,104060.0,2.12839624]
[1747185465179,0.8151687,104070.0,104060.0,2.0338071]
[1747185465374,0.8151687,104070.0,104060.0,2.12839624]
[1747185465984,0.4543687,104070.0,104060.0,2.0338071]
[1747185466196,0.8151687,104070.0,104060.0,2.0338071]
[1747185466582,0.8151687,104070.0,104060.0,2.12839624]
[1747185467692,0.7827687,104070.0,104060.0,2.12839624]
[1747185467887,0.5278,104070.0,104060.0,2.12839624]
[1747185468095,0.7199687,104070.0,104060.0,2.12839624]
[1747185468391,0.7502687,104070.0,104060.0,2.12839624]
[1747185468986,0.7816687,104070.0,104060.0,2.0338071]
[1747185469192,0.7816687,104070.0,104060.0,2.12839624]
[1747185469591,0.5895,104070.0,104060.0,2.12839624]
[1747185469792,0.5278,104070.0,104060.0,2.12839624]
[1747185470088,0.17262071,104070.0,104060.0,2.13805242]
[1747185470295,0.01062071,104070.0,104060.0,0.62839624]
[1747185470489,0.01062071,104070.0,104060.0,0.98919624]
[1747185470993,0.01062071,104070.0,104060.0,2.48919624]
[1747185471191,0.01062071,104070.0,104060.0,2.99778824]
[1747185471398,0.01062071,104070.0,104060.0,2.67987738]
[1747185471588,0.01062071,104070.0,104060.0,2.58528824]
[1747185471782,0.01062071,104070.0,104060.0,3.17987738]
[1747185472087,0.6539133,104100.0,104090.0,0.1921318]
[1747185472297,0.7168133,104100.0,104090.0,0.1921318]
[1747185473187,0.8788133,104100.0,104090.0,0.1921318]
[1747185473492,0.9164133,104100.0,104090.0,0.2241318]
[1747185473694,0.9194133,104100.0,104090.0,0.2241318]
[1747185474486,0.9124133,104100.0,104090.0,0.2241318]
[1747185474693,0.9164133,104100.0,104090.0,0.2241318]
[1747185474891,1.01100244,104100.0,104090.0,0.001]
[1747185475479,1.01100244,104100.0,104090.0,0.1931318]
[1747185476000,1.63663044,104100.0,104090.0,0.001]
[1747185476302,1.48121958,104100.0,104090.0,0.001]
[1747185476479,1.38663044,104100.0,104090.0,0.001]
[1747185476886,0.2882508,104080.0,104070.0,0.28824]
[1747185477083,1.26643994,104080.0,104070.0,0.28824]
[1747185477281,1.32903994,104080.0,104070.0,0.46579388]
[1747185477494,1.2344508,104080.0,104070.0,0.46579388]
[1747185477893,1.32903994,104080.0,104070.0,0.14605388]
[1747185478192,1.42512394,104080.0,104070.0,0.33922258]
[1747185478994,1.42512394,104080.0,104070.0,0.14705388]
[1747185479196,1.42512394,104080.0,104070.0,0.33922258]
[1747185479398,1.42512394,104080.0,104070.0,0.14705388]
[1747185479593,1.42512394,104080.0,104070.0,0.33922258]
[1747185480081,1.74088394,104080.0,104070.0,0.33922258]
[1747185481195,1.74488394,104080.0,104070.0,0.1931687]
[1747185481799,1.74488394,104080.0,104070.0,0.001]
[1747185482497,1.64879994,104080.0,104070.0,0.001]
[1747185483805,1.64879994,104080.0,104070.0,0.1931687]
[1747185484000,1.5542108,104080.0,104070.0,0.1931687]
[1747185484787,1.5542108,104080.0,104070.0,0.001]
[1747185485193,1.65442065,104080.0,104070.0,0.1931687]
[1747185485394,1.55983151,104080.0,104070.0,0.2242687]
[1747185486000,1.55983151,104080.0,104070.0,0.2572687]
[1747185487098,1.55983151,104080.0,104070.0,0.35185784]
[1747185487291,1.28027151,104080.0,104070.0,0.38515784]
[1747185487899,1.28027151,104080.0,104070.0,0.2905687]
[1747185489501,1.28027151,104080.0,104070.0,0.2572687]
[1747185495107,1.28027151,104080.0,104070.0,0.35185784]
[1747185495403,1.12058941,104080.0,104070.0,0.35185784]
[1747185496708,1.12058941,104080.0,104070.0,1.85185784]
[1747185497310,1.12058941,104080.0,104070.0,2.11805784]
[1747185501007,0.75978941,104080.0,104070.0,2.11805784]
[1747185501204,0.59778941,104080.0,104070.0,2.11805784]
[1747185501399,0.59778941,104080.0,104070.0,2.0234687]
[1747185501704,0.59778941,104080.0,104070.0,2.11805784]
[1747185502214,0.53542071,104080.0,104070.0,2.11805784]
[1747185502509,0.7219502,104080.0,104070.0,1.92588914]
[1747185502708,0.84793934,104080.0,104070.0,1.5321]
[1747185502915,0.87993934,104080.0,104070.0,0.001]
[1747185503303,0.87993934,104080.0,104070.0,1.501]
[1747185503499,0.88556005,104080.0,104070.0,1.501]
[1747185503717,0.88556005,104080.0,104070.0,1.6931687]
[1747185504013,0.88556005,104080.0,104070.0,0.1931687]
[1747185505517,1.02968115,104080.0,104060.0,1.738737]
[1747185505817,0.6477687,104070.0,104060.0,1.8828782]
[1747185506216,0.90435784,104070.0,104060.0,1.7720326]
[1747185506615,0.90435784,104070.0,104060.0,1.8050326]
[1747185507116,0.90435784,104070.0,104060.0,1.5]
[1747185507314,0.90435784,104070.0,104060.0,1.6921871]
[1747185507514,0.90435784,104070.0,104060.0,1.6931871]
[1747185507819,0.90435784,104070.0,104060.0,1.501]
[1747185508118,0.1921871,104060.0,104050.0,0.45100008]
[1747185508319,0.6152871,104060.0,104050.0,0.49905108]
[1747185508519,0.6152871,104060.0,104050.0,1.99905108]
[1747185509111,0.7772871,104060.0,104050.0,1.99905108]
[1747185509921,0.7772871,104060.0,104050.0,1.8529972]
[1747185510422,0.7782871,104060.0,104050.0,1.8539972]
[1747185510627,0.87287624,104060.0,104050.0,1.5657]
[1747185510826,1.14315624,104060.0,104050.0,0.001]
[1747185512216,1.14315624,104060.0,104050.0,0.1932056]
[1747185514513,0.1922056,104050.0,104040.0,0.031]
[1747185514718,0.74239474,104050.0,104040.0,0.2232241]
[1747185515323,0.90439474,104050.0,104040.0,0.2232241]
[1747185516922,0.90539474,104050.0,104040.0,0.2242241]
[1747185517325,0.90539474,104050.0,104040.0,0.2252241]
[1747185518020,0.90539474,104050.0,104040.0,0.2242241]
[1747185519116,1.26619474,104050.0,104040.0,0.2242241]
[1747185520321,1.26619474,104050.0,104030.0,1.71160133]
[1747185520322,1.07398914,104050.0,104030.0,0.03422243]
[1747185520517,1.06674238,104040.0,104030.0,0.00192243]
[1747185520823,0.97215324,104040.0,104030.0,0.00192243]
[1747185521014,0.97215324,104040.0,104030.0,0.19416503]
[1747185521217,1.13415324,104040.0,104030.0,0.19416503]
[1747185521415,1.13415324,104040.0,104030.0,0.00192243]
[1747185521613,1.0395641,104040.0,104030.0,0.00192243]
[1747185521816,1.13415324,104040.0,104030.0,0.00292243]
[1747185522217,1.14365839,104040.0,104030.0,0.19516503]
[1747185522417,1.14365839,104040.0,104030.0,0.00292243]
[1747185522616,1.14365839,104040.0,104030.0,0.19516503]
[1747185522916,1.14365839,104040.0,104030.0,0.22636503]
[1747185523728,1.14465839,104040.0,104030.0,0.03412243]
[1747185524721,1.14465839,104040.0,104030.0,0.00392243]
[1747185525318,0.1922611,104020.0,104010.0,0.2884018]
[1747185525521,0.9138611,104020.0,104010.0,1.8024327]
[1747185525819,1.06935024,104020.0,104010.0,1.7543795]
[1747185526328,1.23135024,104020.0,104010.0,1.7543795]
[1747185526922,1.1377611,104020.0,104010.0,1.7593795]
[1747185527324,0.4161611,104020.0,104010.0,1.7593795]
[1747185527524,1.1377611,104020.0,104010.0,1.7593795]
[1747185528622,1.1073611,104020.0,104010.0,1.7583795]
[1747185531130,1.11298181,104020.0,104010.0,1.7583795]
[1747185533127,1.20757095,104020.0,104010.0,1.7583795]
[1747185533316,1.14468181,104020.0,104010.0,1.7583795]
[1747185533517,1.23927095,104020.0,104010.0,0.0346]
[1747185533828,1.23927095,104020.0,104010.0,0.004]
[1747185534026,0.1922795,104010.0,104000.0,0.0301]
[1747185534330,0.192298,104000.0,103990.0,0.25733967]
[1747185534531,0.71268714,104000.0,103990.0,0.06302317]
[1747185534926,0.618098,104000.0,103990.0,0.06302317]
[1747185535126,0.87468714,104000.0,103990.0,0.03202317]
[1747185536339,0.87468714,104000.0,103990.0,0.22433967]
[1747185536535,0.87568714,104000.0,103990.0,0.22433967]
[1747185537034,0.87568714,104000.0,103990.0,0.22933967]
[1747185537227,0.87568714,104000.0,103990.0,0.03702317]
[1747185537427,0.87568714,104000.0,103990.0,0.22533967]
[1747185537932,0.87568714,104000.0,103990.0,0.25843967]
[1747185539236,0.89042556,104000.0,103990.0,0.25843967]
[1747185540930,0.79583642,104000.0,103990.0,0.22533967]
[1747185541234,0.89042556,104000.0,103990.0,0.22533967]
[1747185541531,0.79583642,104000.0,103990.0,0.22533967]
[1747185541737,1.02469642,104000.0,103990.0,0.25643967]
[1747185541929,1.05739642,104000.0,103990.0,0.25643967]
[1747185542124,1.15198556,104000.0,103990.0,0.06412317]
[1747185542533,1.05739642,104000.0,103990.0,0.06412317]
[1747185542834,1.15198556,104000.0,103990.0,0.06412317]
[1747185543429,1.15198556,104000.0,103990.0,0.25643967]
[1747185544339,0.79118556,104000.0,103990.0,0.25643967]
[1747185544635,1.51278556,104000.0,103990.0,0.25643967]
[1747185544932,1.41819642,104000.0,103990.0,0.06412317]
[1747185545133,1.51278556,104000.0,103990.0,0.06412317]
[1747185546236,1.51840627,104000.0,103990.0,0.06412317]
[1747185548142,1.42381713,104000.0,103990.0,0.06412317]
[1747185548341,1.51840627,104000.0,103990.0,0.06412317]
[1747185549334,1.51840627,104000.0,103990.0,0.00292317]
[1747185552340,1.51278556,104000.0,103990.0,0.03402317]
[1747185553340,1.51840627,104000.0,103990.0,0.03402317]
[1747185554535,1.51840627,104000.0,103990.0,0.00292317]
[1747185554733,0.192335,103980.0,103970.0,0.03336177]
[1747185554940,0.913935,103980.0,103970.0,0.28941527]
[1747185555142,1.49566414,103980.0,103970.0,0.28941527]
[1747185555944,1.49666414,103980.0,103970.0,0.29041527]
[1747185556143,1.49666414,103980.0,103970.0,0.26301527]
[1747185556340,1.49666414,103980.0,103970.0,0.07066177]